Workbook

Sheet SM-sarja
B1: Erkki Rautiainen | E1: s. 11.2.1941 Jyväskylä k. 2.2.2014 Jyväskylä
B2: MESTARUUSSARJA | E2: Runkosarja | I2: Kärkilyönnit (KL), pesänvälit | P2: Runkosarja TOP-30 | U2: Ylempi loppusarja | AA2: Alempi loppusarja | AH2: Arvo-ottelut | AK2: Mitalit
B3: Vuosi | C3: Sija | D3: Seura | E3: OTT | F3: KUN | G3: LÖI | H3: TOI | I3: KL | J3: 0 > 1 | K3: 1 > 2 | L3: 2 > 3 | M3: 3 > k | N3: KL-% | P3: LÖI | Q3: TOI | R3: L+T | S3: KL | U3: OTT | V3: KUN | W3: LÖI | X3: TOI | Y3: KL | AA3: OTT | AB3: KUN | AC3: LÖI | AD3: TOI | AE3: KL | AG3: IL | AH3: LL | AI3: Cup | AJ3: K | AK3: H | AL3: P
B4: 1955 | C4: 5. | D4: Kiri 2 | F4: suomensarja
B5: 1956 | C5: 5. | D5: KiVe | F5: suomensarja
B6: 1957 | C6: 8. | D6: KiVe | F6: suomensarja
B7: 1958 | C7: 1. | D7: Kiri | E7: 13 | F7: 1 | G7: 13 | H7: 11 | P7: 23. | R7: 27. | AJ7: 1
B8: 1959 | C8: 11. | D8: Kiri | E8: 8 | F8: 0 | G8: 1 | H8: 5
B9: 1960 | C9: 6. | D9: Kiri | E9: 13 | F9: 0 | G9: 10 | H9: 14 | Q9: 26. | R9: 29.
B10: 1961 | C10: 7. | D10: PuMu | E10: 11 | F10: 0 | G10: 2 | H10: 9
B11: 1962 | C11: 4. | D11: Kiri | E11: 12 | F11: 2 | G11: 15 | H11: 18 | P11: 15. | Q11: 10. | R11: 5. | AG11: 1
B12: 1963 | C12: 6. | D12: Kiri | E12: 11 | F12: 1 | G12: 3 | H12: 13 | Q12: 30.
B13: 1964 | C13: 6. | D13: HoNsU | E13: 19 | F13: 0 | G13: 12 | H13: 26 | Q13: 13. | R13: 28.
B14: 1965 | C14: 3. | D14: HoNsU | E14: 19 | F14: 5 | G14: 15 | H14: 34 | P14: 26. | Q14: 6. | R14: 7. | AL14: 1
B15: 1966 | C15: 3. | D15: HoNsU | E15: 19 | F15: 2 | G15: 18 | H15: 22 | P15: 27. | Q15: 28. | R15: 25. | AL15: 1
B16: 1967 | C16: 5. | D16: HoNsU | E16: 22 | F16: 1 | G16: 20 | H16: 23 | P16: 25. | Q16: 28. | R16: 25.
B17: 1968 | C17: 9. | D17: HoNsU | E17: 20 | F17: 3 | G17: 14 | H17: 9
B18: 1969 | C18: 10. | D18: Kiri | E18: 22 | F18: 3 | G18: 15 | H18: 18 | P18: 28.
B19: Yhteensä | E19: =SUM(E7:E18) -> 189 | F19: 18 | G19: 138 | H19: 202 | O19: 695.4834951 | P19: 0-0-0 | Q19: 0-0-0 | R19: 0-0-0 | S19: 0-0-0 | AG19: 1 | AH19: 0 | AI19: 0 | AJ19: 1 | AK19: 0 | AL19: 2
B20: Pesispörssi | D20: 739.7
B22: URA SM-SARJASSA | E22: OTT | F22: KUN | G22: LÖI | H22: TOI | I22: KL | K22: ka/L | L22: ka/T | M22: ka/KL | N22: KL-% | P22: ENSIMMÄISET MESTARUUSSARJASSA | AG22: KUNNARIT YHDESSÄ OTTELUSSA
B23: Runkosarja | E23: 189 | F23: 18 | G23: 138 | H23: 202 | K23: =PRODUCT((F23+G23)/E23) -> 0.83 | L23: =PRODUCT(H23/E23) -> 1.07 | P23: Ottelu | R23: 11.05. 1958 Kiri - IK 10-1 | Y23: 1. ottelu | AB23: 17 v 3 kk 0 pv | AG23: 29.08.1965 KPL - HoNsU 2-7 2
B24: Ylempi loppusarja | P24: Lyöty | R24: 26.05. 1958 Kiri - KPL 6-10 | Y24: 3. ottelu | AB24: 17 v 3 kk 15 pv
B25: Alempi loppusarja | P25: Tuotu | R25: 11.05. 1958 Kiri - IK 10-1 | Y25: 1. ottelu | AB25: 17 v 3 kk 0 pv
B26: KAIKKI | E26: 189 | F26: 18 | G26: 138 | H26: 202 | K26: =PRODUCT((F26+G26)/E26) -> 0.83 | L26: =PRODUCT(H26/E26) -> 1.07 | P26: Kunnari | R26: 24.08. 1958 Kiri - ViVe 23-17 | Y26: 10. ottelu | AB26: 17 v 6 kk 13 pv
B28: Seurat | D28: Kiri = Jyväskylän Kiri (1930), kasvattajaseura | L28: KiVe = Jyväskylän Kiri-Veljet (Kiri 2) | U28: PuMu = Helsingin Puna-Mustat (1941) | AC28: HoNsU = Hongikon Nuorisoseuran Urheilijat (1948)
B30: RUNKOSARJA, KA / OTT | F30: IKÄ | G30: OTT | H30: LÖI | I30: TOI | J30: TEHO | K30: KL | M30: SIJOITUS | P30: OTT | Q30: LÖI | R30: TOI | S30: TEHO | U30: KL | W30: RUNKOSARJA, TASASATASET, ka. / peli
B31: 1958 | C31: 1. | D31: Kiri | F31: 17 | G31: 13 | H31: =PRODUCT((F7+G7)/E7) -> 1.08 | I31: =PRODUCT(H7/E7) -> 0.85 | J31: =PRODUCT(F7+G7+H7)/E7 -> 1.92 | M31: 1945 - 1958 | P31: 185. | Q31: 119. | R31: 137. | S31: 136. | W31: Etenijätilasto
B32: 1959 | C32: 11. | D32: Kiri | F32: 18 | G32: 8 | H32: =PRODUCT((F8+G8)/E8) -> 0.13 | I32: =PRODUCT(H8/E8) -> 0.63 | J32: =PRODUCT(F8+G8+H8)/E8 -> 0.75 | M32: 1945 - 1959 | P32: 175. | Q32: 133. | R32: 143. | S32: 144. | W32: 200 | Y32: 8. 06.08. 1969 Kiri - Lippo 7-16 | AH32: 183. ottelu | AK32: 1.09
B33: 1960 | C33: 6. | D33: Kiri | F33: 19 | G33: 13 | H33: 0.77 | I33: 1.08 | J33: 1.85 | M33: 1945 - 1960 | P33: 145. | Q33: 115. | R33: 113. | S33: 119.
B34: 1961 | C34: 7. | D34: PuMu | F34: 20 | G34: 11 | H34: 0.18 | I34: 0.82 | J34: 1.00 | M34: 1945 - 1961 | P34: 129. | Q34: 119. | R34: 101. | S34: 114. | W34: KATSOJIA YLI 5000 ( 1 )
B35: 1962 | C35: 4. | D35: Kiri | F35: 21 | G35: 12 | H35: 1.42 | I35: 1.50 | J35: 2.92 | M35: 1945 - 1962 | P35: 118. | Q35: 85. | R35: 77. | S35: 79. | W35: 5171 | Y35: 49. 23.07. 1967 KPL - HoNsU 16-6
B36: 1963 | C36: 6. | D36: Kiri | F36: 22 | G36: 11 | H36: 0.36 | I36: 1.18 | J36: 1.55 | M36: 1945 - 1963 | P36: 106. | Q36: 83. | R36: 58. | S36: 71.
B37: 1964 | C37: 6. | D37: HoNsU | F37: 23 | G37: 19 | H37: 0.63 | I37: 1.37 | J37: 2.00 | M37: 1945 - 1964 | P37: 81. | Q37: 72. | R37: 40. | S37: 52. | W37: YLEISÖENNÄTYS KOTONA
B38: 1965 | C38: 3. | D38: HoNsU | F38: 24 | G38: 19 | H38: 1.05 | I38: 1.79 | J38: 2.84 | M38: 1945 - 1965 | P38: 59. | Q38: 50. | R38: 21. | S38: 39. | Y38: 527. 06.09. 1959 KPL - ViVe 8-3
B39: 1966 | C39: 3. | D39: HoNsU | F39: 25 | G39: 19 | H39: 1.05 | I39: 1.16 | J39: 2.21 | M39: 1945 - 1966 | P39: 45. | Q39: 44. | R39: 13. | S39: 24.
B40: 1967 | C40: 5. | D40: HoNsU | F40: 26 | G40: 22 | H40: 0.95 | I40: 1.05 | J40: 2.00 | M40: 1945 - 1967 | P40: 30. | Q40: 31. | R40: 11. | S40: 16. | W40: YLEISÖENNÄTYS VIERAISSA
B41: 1968 | C41: 9. | D41: HoNsU | F41: 27 | G41: 20 | H41: 0.85 | I41: 0.45 | J41: 1.30 | M41: 1945 - 1968 | P41: 19. | Q41: 30. | R41: 12. | S41: 14. | W41: 5171 | Y41: 49. 23.07. 1967 KPL - HoNsU 16-6
B42: 1969 | C42: 10. | D42: Kiri | F42: 28 | G42: 22 | H42: 0.82 | I42: 0.82 | J42: 1.64 | M42: 1945 - 1969 | P42: 9. | Q42: 26. | R42: 8. | S42: 12.
W43: RUNKOSARJA
W44: KATSOJIA | AA44: 203 952
W45: OTTELUT | AA45: 189
W46: KA / OTT | AA46: 1179

Sheet Arvo-ottelut
B1: ITÄ - LÄNSI - KORTTI
B2: Erkki Rautiainen | C2: s. 11.2.1941 Jyväskylä k. 2.2.2014 Jyväskylä
B3: MIEHET | C3: Itä - Länsi, tulos | D3: Joukkue | E3: Seura | G3: V | H3: T | I3: H | J3: Up. | K3: Lj. | L3: Palk. | M3: O | N3: K | O3: L | P3: T | Q3: KL | R3: 1 | S3: 2 | T3: 3 | U3: k | V3: KL-% | W3: Pelinjohtaja | X3: Yleisöä
B4: 02.09. 1962 Hesperia, Helsinki | C4: 1-7 | D4: Itä | E4: Kiri | I4: 1 | J4: 3v | K4: 1 | M4: 1 | P4: 1 | W4: Simo Ristonmaa | X4: 3500
B5: Ikä ensimmäisessä ottelussa | C5: 21 v 6 kk 22 pv
B7: A-POJAT | C7: Itä - Länsi, tulos | D7: Joukkue | E7: Seura | G7: V | H7: T | I7: H | J7: Up. | K7: Lj. | L7: Palk. | M7: O | N7: K | O7: L | P7: T | Q7: KL | R7: 1 | S7: 2 | T7: 3 | U7: k | V7: KL-% | W7: Pelinjohtaja | X7: Yleisöä
B8: 04.09. 1960 Ilmajoki | C8: 2-3 | D8: Itä | E8: Kiri | I8: 1 | J8: 2va | K8: 4 | L8: yp | M8: 1 | O8: 1 | P8: 1 | W8: Paavo Pollari | X8: 271

Sheet Pelinjohtaja
B1: PELINJOHTAJAKORTTI
B2: Erkki Rautiainen | E2: s. 11.2.1941 Jyväskylä k. 2.2.2014 Jyväskylä
B3: MSU | C3: Runkosarja | K3: Ylempi loppusarja | P3: Alempi loppusarja | T3: Arvo-ottelut | V3: Mitalit | Y3: Huomautuksia
B4: Vuosi | C4: Seura | D4: Sija | E4: O | F4: V | G4: T | H4: H | I4: Voitto-% | K4: O | L4: V | M4: T | N4: H | O4: Voitto-% | P4: O | Q4: V | R4: H | S4: Voitto-% | T4: IL | U4: LL | V4: 1 | W4: 2 | X4: 3
B5: 1977 | C5: Kiri | D5: 2. | E5: 22 | F5: 15 | G5: 1 | H5: 6 | I5: =PRODUCT(F5/E5) -> 68.2 % | W5: 1
B6: 1978 | C6: Kiri | D6: 2. | E6: 22 | F6: 16 | G6: 1 | H6: 5 | I6: =PRODUCT(F6/E6) -> 72.7 % | T6: 1 | W6: 1
B7: 1979 | C7: Kiri | D7: 2. | E7: 22 | F7: 18 | G7: 0 | H7: 4 | I7: =PRODUCT(F7/E7) -> 81.8 % | K7: 7 | L7: 3 | M7: 1 | N7: 3 | O7: =PRODUCT(L7/K7) -> 42.9 % | W7: 1 | Y7: mitalisarja, mestaruusuusinta
B8: 1982 | C8: HoNsU | D8: 1. | E8: MYP, 20 ottelua
B9: 1983 | C9: HoNsU | D9: 5. | E9: 22 | F9: 10 | G9: 4 | H9: 8 | I9: =PRODUCT(F9/E9) -> 45.5 %
B10: 1987 | C10: Kiri | D10: 10. | E10: 0 | F10: 0 | G10: 0 | H10: 0 | P10: 2 | Q10: 0 | R10: 2 | S10: =PRODUCT(Q10/P10) -> 0.0 % | Y10: putoamissarja
B11: Yhteensä | E11: =SUM(E5:E10) -> 88 | F11: =SUM(F5:F10) -> 59 | G11: =SUM(G5:G10) -> 6 | H11: =SUM(H5:H10) -> 23 | I11: =PRODUCT(F11/E11) -> 67.0 % | K11: =SUM(K5:K10) -> 7 | L11: =SUM(L5:L10) -> 3 | M11: =SUM(M5:M10) -> 1 | N11: =SUM(N5:N10) -> 3 | O11: =PRODUCT(L11/K11) -> 42.9 % | P11: =SUM(P5:P10) -> 2 | Q11: =SUM(Q5:Q10) -> 0 | R11: =SUM(R5:R10) -> 2 | S11: =PRODUCT(Q11/P11) -> 0.0 % | T11: =SUM(T5:T10) -> 1 | U11: 0 | V11: =SUM(V5:V10) -> 0 | W11: =SUM(W5:W10) -> 3 | X11: =SUM(X5:X10) -> 0
B13: URA SUPERISSA | E13: O | F13: V | G13: T | H13: H | I13: Voitto-% | K13: PLAY OFF | O13: SARJAT | P13: V | Q13: T | R13: H | S13: Voitto-% | U13: Seurat: | W13: Kiri = Jyväskylän Kiri (1930)
B14: Runkosarja | E14: =PRODUCT(E11) -> 88 | F14: =PRODUCT(F11) -> 59 | G14: =PRODUCT(G11) -> 6 | H14: =PRODUCT(H11) -> 23 | I14: =PRODUCT(F14/E14) -> 67.0 % | K14: Puolivälierät | W14: HoNsU = Hongikon Nuorisoseuran Urheilijat (1948)
B15: Ylempi loppusarja | E15: =SUM(K11) -> 7 | F15: =SUM(L11) -> 3 | G15: 0 | H15: =SUM(N11) -> 3 | I15: =PRODUCT(F15/E15) -> 42.9 % | K15: Välierät
B16: Alempi loppusarja | E16: =SUM(P11) -> 2 | F16: =SUM(Q11) -> 0 | G16: 0 | H16: =SUM(R11) -> 2 | I16: =PRODUCT(F16/E16) -> 0.0 % | K16: Finaalit
B17: KAIKKI | E17: =SUM(E14:E16) -> 97 | F17: =SUM(F14:F16) -> 62 | G17: =SUM(G14:G16) -> 6 | H17: =SUM(H14:H16) -> 28 | I17: =PRODUCT(F17/E17) -> 63.9 % | K17: KAIKKI
